Cogmind - Beta 14 @@@ ROGUE MODE // 2025.03.31 @ 21:23:57 Player: golanco Result: Destroyed by D-53 Grenadier with Mini Grenade Launcher Performance ------------- Evolutions (1) 500 Regions Visited (3) 600 Robots Destroyed (77) 385 Value Destroyed (1651) 1651 Prototype IDs (5) 100 Alien Tech Used (0) 0 Bonus (86) 86 TOTAL SCORE: 3322 Bonus ------- High Alert Combat Kills 26 Follower Combat Kills 60 Cogmind --------- Core Integrity 0/400 Matter 300/300 Energy 98/100 System Corruption 8% Temperature Cool (1) Movement Treading (240) Ox1 Location -9/Mines Parts ------- > --- POWER (1) -------- (None) > --- PROPULSION (2) --- Improved Treads > --- UTILITY (3) ------ High-capacity Storage Unit Salvage Targeting Computer Improved Targeting Computer > --- WEAPON (3) ------- (None) > --- INVENTORY (20) --- Light Treads Light Treads Light Treads Light Treads Light Treads Cesium-ion Thruster Cesium-ion Thruster Cesium-ion Thruster Cesium-ion Thruster Heat Sink Sensor Array Targeting Computer Light Armor Plating Hacking Suite System Shield System Shield System Shield System Shield Mini Grenade Launcher Mini Grenade Launcher Peak State ------------ > --- POWER ------------ Heavy Ion Engine > --- PROPULSION ------- Light Treads Light Treads > --- UTILITY ---------- High-capacity Storage Unit Sensor Array Improved Targeting Computer > --- WEAPON ----------- Beam Rifle Light Assault Rifle Heavy Assault Rifle > --- INVENTORY -------- Light Ion Engine Light Treads Light Treads Light Treads Light Treads Improved Flight Unit Improved Flight Unit Cesium-ion Thruster Cesium-ion Thruster Cesium-ion Thruster Cesium-ion Thruster Signal Interpreter Light Armor Plating Light Armor Plating Hacking Suite System Shield System Shield System Shield System Shield Mini Grenade Launcher [Rating: 18] Favorites ----------- Power Light Ion Engine Engine Light Ion Engine Power Core Light Nuclear Core Propulsion Light Treads Treads Light Treads Leg Aluminum Leg Flight Unit Improved Flight Unit Utility High-capacity Storage Unit Device Sensor Array Storage High-capacity Storage Unit Processor Improved Targeting Computer Protection Hardened Light Armor Plating Weapon Light Assault Rifle Energy Gun Beam Rifle Ballistic Gun Light Assault Rifle Ballistic Cannon Light Cannon Build | -11 -10 -9 -9 ------- Run | Yrd Mat Mat Min Slots Evolved 2 | . . 2 . Power . | . . . . Propulsion . | . . . . Utility 1 | . . 1 . Weapon 1 | . . 1 . Parts Attached 45 | 7 9 28 1 Power 6 | 1 1 3 1 Engine 5 | 1 . 3 1 Core 1 | . 1 . . Reactor . | . . . . Propulsion 12 | 2 2 8 . Treads 9 | . 2 7 . Leg 2 | 2 . . . Wheel . | . . . . Hover . | . . . . Flight 1 | . . 1 . Utility 12 | 1 2 9 . Device 5 | . . 5 . Storage 3 | 1 2 . . Processor 2 | . . 2 . Hackware . | . . . . Protection 2 | . . 2 . Artifact . | . . . . Weapon 15 | 3 4 8 . Energy Gun 2 | 1 . 1 . Energy Cannon . | . . . . Ballistic Gun 10 | 2 2 6 . Ballistic Cannon 3 | . 2 1 . Launcher . | . . . . Special Weapon . | . . . . Impact Weapon . | . . . . Slashing Weapon . | . . . . Piercing Weapon . | . . . . Special Melee Weapon . | . . . . Unidentified Prototypes 2 | . . 2 . Parts Lost 13 | . 2 6 5 Power 3 | . . 2 1 Propulsion 3 | . . 2 1 Utility 2 | . . 2 . Weapon 5 | . 2 . 3 Highest Loss Streak 5 | . 1 2 5 To Critical Strikes 1 | . . 1 . Average Slot Usage (%) 91 | . 96 90 98 Engine 4 | . 10 3 10 Core 1 | . 3 1 . Treads 20 | . 13 21 21 Leg 1 | . 14 . . Device 4 | . . 5 . Storage 13 | . 27 11 11 Processor 10 | . . 11 22 Protection 2 | . . 3 . Energy Gun 6 | . 6 6 11 Ballistic Gun 22 | . 16 22 21 Ballistic Cannon 3 | . 1 3 . Peak Build Rating 18 | 6 10 18 18 Average Rating 13 | 4 7 14 17 On Entrance 8 | . 6 10 17 Naked Turns . | . . . . Heaviest Build 71 | 14 71 59 50 Greatest Support 43 | 20 40 43 43 Greatest Overweight (x) 4 | 4 3 2 2 Average Overweight (x) 1 | 1 1 1 1 Largest Inventory Capacity 20 | 8 20 20 20 Average Capacity 19 | 7 18 20 20 Most Carried 20 | 2 10 20 20 Average Carried 17 | 1 6 18 19 Final Capacity 20 | 8 20 20 20 Final Carried 20 | 2 9 20 20 Class Distribution -------------------- 56% | Scavenger-Gunner 17% | Scavenger-Tank 13% | Mutant 5% | Skirmisher Dominant Class ---------------- Mutant | -10/Materials Scavenger-Gunner | -9/Materials Scavenger-Gunner | -9/Mines Resources | -11 -10 -9 -9 ----------- Run | Yrd Mat Mat Min Matter Collected 1813 | 224 277 1298 14 Remotely 484 | . . 484 . Salvage Created 2724 | . 619 2031 74 Parts 178 | . 31 144 3 Haulers Intercepted 7 | . 1 6 . Recyclers Shooed 5 | . 1 4 . Parts Field Recycled . | . . . . Retrieved Matter . | . . . . Parts Self-Destructed . | . . . . Prevented . | . . . . Kills | -11 -10 -9 -9 ------- Run | Yrd Mat Mat Min Combat Hostiles Destroyed 48 | . 10 38 . Guns 35 | . 9 26 . Cannons 12 | . . 12 . AOE 1 | . 1 . . Classes Destroyed 11 | . 5 6 . Worker 3 | . . 3 . Builder 2 | . 1 1 . Tunneler 1 | . . 1 . Hauler 7 | . 1 6 . Recycler 8 | . 2 5 1 Operator 1 | . . 1 . Watcher 7 | . 2 5 . Swarmer 16 | . . 16 . Grunt 22 | . 10 12 . Brawler 1 | . . 1 . Sentry 9 | . . 9 . Best Kill Streak 7 | . 6 7 1 Combat Bots Only 6 | . 3 6 . Max Kills in Single Turn 2 | . 2 1 1 Gunslinging . | . . . . Exploded 1 | . 1 . . Melee . | . . . . Uniques/NPCs Destroyed . | . . . . Combat | -11 -10 -9 -9 -------- Run | Yrd Mat Mat Min Hostile Shots Fired 281 | . 66 203 12 Missed 65 | . 15 50 . Damage Taken 2647 | . 652 1566 429 Core 465 | . 53 248 164 Absorbed by Shields 27 | . . 27 . Core Remaining (%) 89 | 100 78 . . Volleys Fired 238 | . 62 175 1 Largest 3 | . 2 3 3 Hottest 105 | . 60 105 99 Shots Fired 628 | . 105 520 3 Gun 531 | . 105 423 3 Cannon 97 | . . 97 . Launcher . | . . . . Special . | . . . . Kinetic 551 | . 77 472 2 Thermal 49 | . . 48 1 Explosive . | . . . . Electromagnetic 28 | . 28 . . Robot Hit Streak 11 | . 10 11 2 Robot Miss Streak 5 | . 4 5 1 Penetration Max . | . . . . Secondary Targets 5 | . . 5 . Max Gunslinging Chain 1 | . . 1 . Shots Hit Robots 350 | . 68 280 2 Core Hits 133 | . 29 102 2 Critical Kills 6 | . 1 5 . Critical Parts Destroyed . | . . . . Critical Strikes 11 | . 1 10 . Burn 3 | . . 3 . Destroy 6 | . 1 5 . Blast 2 | . . 2 . Melee Attacks . | . . . . Impact . | . . . . Slashing . | . . . . Piercing . | . . . . Sneak Attacks . | . . . . Combat Hostiles . | . . . . Follow-up Attacks . | . . . . Damage Inflicted 4298 | . 1216 3064 18 Guns 2985 | . 822 2145 18 Cannons 808 | . . 808 . Explosions 493 | . 394 99 . Melee . | . . . . Ramming 12 | . . 12 . Kinetic 3085 | . 560 2507 18 Thermal 769 | . 323 446 . Explosive 71 | . 71 . . Electromagnetic 361 | . 262 99 . Impact . | . . . . Slashing . | . . . . Piercing . | . . . . Highest Corruption 8 | . . 8 8 Average Corruption 6 | . . 6 8 Corruption Purged . | . . . . Corruption Blocked . | . . . . Effects 68 | . . 63 5 Message Errors 20 | . . 19 1 Matter Fused 13 | . . 13 . Heat Flow Errors 9 | . . 8 1 Energy Discharges 7 | . . 7 . Data Loss (minor) 10 | . . 8 2 Data Loss (major) 4 | . . 3 1 Misfires 1 | . . 1 . Alerts 3 | . . 3 . Weapon Failures 1 | . . 1 . Overload Shots . | . . . . Overflow Damage 51 | . 51 . . Projectiles . | . . . . Explosions 51 | . 51 . . Melee . | . . . . Knockbacks 6 | . . 6 . Impact . | . . . . Kinetic 6 | . . 6 . Secondary . | . . . . Self-Inflicted Damage 15 | . 15 . . Shots 1 | . 1 . . Rammed 3 | . . 3 . Targets Rammed 3 | . . 3 . Kicked . | . . . . Crushed . | . . . . Highest Temperature 368 | . 87 368 102 Average Temperature 65 | . 37 70 39 Received Heat Transfer 806 | . 357 440 9 Effects 3 | . . 3 . Shutdowns 1 | . . 1 . Interference 1 | . . 1 . Matter Decay 1 | . . 1 . Siege Activations . | . . . . Robots Corrupted . | . . . . Combat Hostiles . | . . . . Parts Fried . | . . . . Impact Corruptions . | . . . . Robots Melted . | . . . . Combat Hostiles . | . . . . Parts Melted . | . . . . Heat Transferred 1719 | . 350 1369 . Parts Sabotaged . | . . . . Parts Stolen . | . . . . Parts Stripped . | . . . . Power Chain Reactions 1 | . 1 . . Alert | -11 -10 -9 -9 ------- Run | Yrd Mat Mat Min Peak Influence 444 | . 270 444 228 Initial 170 | . . 51 170 Average 264 | . 114 294 214 Maximum Alert Level 2 | . 1 2 1 Low Security (%) 24 | 100 83 14 17 Level 1 67 | . 16 75 82 Level 2 8 | . . 10 . Level 3 . | . . . . Level 4 . | . . . . Level 5 . | . . . . High Security . | . . . . Max Security . | . . . . Squads Dispatched 5 | . 2 3 . Investigation 2 | . . 2 . Extermination . | . . . . Reinforcement 3 | . 2 1 . Assault . | . . . . Garrison . | . . . . Intercept . | . . . . Searches Triggered . | . . . . Construction Impeded . | . . . . Haulers Reinforced . | . . . . Active Scanning Responses . | . . . . Cargo Convoy Interrupts . | . . . . Stealth | -11 -10 -9 -9 --------- Run | Yrd Mat Mat Min Distress Signals 5 | . 3 2 . Communications Jammed . | . . . . Distress Signals . | . . . . Times Spotted 81 | . 16 61 4 Peak Tracking Total 7 | . 4 7 2 Tactical Retreats 1 | . . 1 . Traps | -11 -10 -9 -9 ------- Run | Yrd Mat Mat Min Traps Triggered 5 | . . 5 . Indirectly . | . . . . Trap Hack Attempts . | . . . . Triggered . | . . . . Disarmed . | . . . . Reprogrammed . | . . . . Reused . | . . . . Traps Extracted . | . . . . Installed . | . . . . Triggered . | . . . . Machines | -11 -10 -9 -9 ---------- Run | Yrd Mat Mat Min Machines Disabled 4 | . 2 2 . Max in Single Turn 2 | . 2 1 . Machines Repaired . | . . . . Machines Dismantled . | . . . . Machines Sabotaged . | . . . . Overloaded Fab Kills . | . . . . Hacking | -11 -10 -9 -9 --------- Run | Yrd Mat Mat Min Machines Accessed 8 | . 1 7 . Terminals 6 | . 1 5 . Fabricators . | . . . . Repair Stations . | . . . . Recycling Units 1 | . . 1 . Scanalyzers 1 | . . 1 . Garrison Access . | . . . . Total Hacks 24 | . 1 23 . Successful 15 | . 1 14 . Failed 9 | . . 9 . Catastrophic 1 | . . 1 . Database Lockouts . | . . . . Manual 2 | . . 2 . Terminals 13 | . 1 12 . Fabricators . | . . . . Repair Stations . | . . . . Recycling Units 2 | . . 2 . Scanalyzers 9 | . . 9 . Garrison Access . | . . . . Terminal Hacks 7 | . 1 6 . Prototype ID Bank 2 | . . 2 . Unreport Threat 1 | . . 1 . Locate Traps 1 | . . 1 . Hauler Manifests 2 | . 1 1 . Registered Components 1 | . . 1 . Fabricator Hacks . | . . . . Repair Station Hacks . | . . . . Recycling Unit Hacks 1 | . . 1 . Retrieve Components 1 | . . 1 . Scanalyzer 7 | . . 7 . Insert Component 3 | . . 3 . Analyze 4 | . . 4 . Garrison Access Hacks . | . . . . Unauthorized Hacks . | . . . . Terminals . | . . . . Fabricators . | . . . . Repair Stations . | . . . . Recycling Units . | . . . . Scanalyzers . | . . . . Garrison Access . | . . . . Data Cores Recovered . | . . . . Used . | . . . . Hacking Detections 5 | . . 5 . Full Trace Events 1 | . . 1 . Feedback Events . | . . . . Feedback Blocked . | . . . . Robot Schematics Acquired . | . . . . Robots Built . | . . . . Authchips . | . . . . Time . | . . . . Total Robot Build Rating . | . . . . Part Schematics Acquired 3 | . . 3 . Parts Built . | . . . . Authchips . | . . . . Time . | . . . . Total Part Build Rating . | . . . . Parts Repaired . | . . . . Time . | . . . . Parts Recycled . | . . . . Recycled Matter . | . . . . Retrieved Matter . | . . . . Retrieved Components 10 | . . 10 . Parts Scanalyzed 3 | . . 3 . Part Schematics Acquired 3 | . . 3 . Parts Damaged . | . . . . Bothacking | -11 -10 -9 -9 ------------ Run | Yrd Mat Mat Min Used RIF Installer . | . . . . Robots Hacked . | . . . . Non-combat . | . . . . Combat . | . . . . Robot Hacks Applied . | . . . . Relay Couplers Released . | . . . . Fabnet Peak Effective % . | . . . . Robots Rewired . | . . . . Allies Hacked . | . . . . Hacks Repelled . | . . . . Allies | -11 -10 -9 -9 -------- Run | Yrd Mat Mat Min Total Allies 1 | . . . 1 Largest Group 1 | . . . 1 Highest-Rated Group 31 | . . . 31 Highest-Rated Ally 31 | . . . 31 Total Orders . | . . . . Ally Attacks 13 | . . . 13 Total Damage 147 | . . . 147 Kills 2 | . . . 2 Allies Corrupted . | . . . . Allies Melted . | . . . . Intel | -11 -10 -9 -9 ------- Run | Yrd Mat Mat Min Robot Analysis Total . | . . . . Derelict Logs Recovered . | . . . . Drone Launches . | . . . . Drone Recoveries . | . . . . Exploration | -11 -10 -9 -9 ------------- Run | Yrd Mat Mat Min Turns Passed 5225 | 77 641 4270 237 Spaces Moved 1851 | 45 194 1515 97 Core 21 | 21 . . . Treads 1707 | . 95 1515 97 Legs 123 | 24 99 . . Wheels . | . . . . Hover . | . . . . Flight . | . . . . Fastest Speed 50 | 50 120 240 240 Average Speed 237 | 145 229 241 240 Slowest Speed 400 | 250 400 320 320 Overloaded Moves . | . . . . Propulsion Burnouts . | . . . . Robots Hopped . | . . . . Cave-ins Triggered . | . . . . Exploration Rate (%) 40 | 5 43 92 23 Regions Visited 3 Branch Regions 1 Pre-discovered Areas . | . . . . Known Exits Taken . | . . . . Unknown Exits Taken 3 | 1 1 1 . Scrap Searched 1 | . . . 1 Spaces Dug . | . . . . Terrain Destroyed 5 | . 5 . . Melee . | . . . . Projectile . | . . . . AOE 5 | . 5 . . Terrain Rammed . | . . . . Walls Destroyed . | . . . . Machines Disabled . | . . . . Actions | -11 -10 -9 -9 --------- Run | Yrd Mat Mat Min Total 2260 | 53 292 1815 100 Wait 25 | . 8 17 . Move 1848 | 44 193 1514 97 Hop . | . . . . Pick Up 55 | 1 13 40 1 Fast Attach 21 | 7 3 11 . Attach 7 | . 2 4 1 Detach 1 | 1 . . . Swap 17 | . 4 13 . Drop 45 | . 7 38 . Fire 238 | . 62 175 1 Melee . | . . . . Ram . | . . . . Kick . | . . . . Crush 3 | . . 3 . Escape Stasis . | . . . . Rewire . | . . . . Trap . | . . . . Miscellaneous . | . . . . Route ------- -11/Scrapyard -10/Materials -9/Materials (discovered 4 exits: [*Mat x3] / [*Min]) -9/Mines (discovered 1 exit: [*Zio]) History --------- Turn | Location | Event 15 | -11/Scrapyard | Discovered new exit (range 16) 78 | -11/Scrapyard | Entered Materials 301 | -10/Materials | Build established: Mutant 690 | -10/Materials | Discovered new exit (range 10) 719 | -10/Materials | Entered another Materials area 719 | -9/Materials | Evolved 2 slots: Utility x1, Weapon x1 1279 | -9/Materials | Discovered new exit (range 16) 1662 | -9/Materials | Build established: Scavenger-Tank 2601 | -9/Materials | Build established: Scavenger-Gunner 2713 | -9/Materials | Discovered new exit (range 16) 3202 | -9/Materials | Discovered new exit (range 16) 3811 | -9/Materials | Core integrity fell below 50% 4735 | -9/Materials | Discovered new exit (range 6) 4989 | -9/Materials | Entered Mines 5015 | -9/Mines | Received a Mining Laser from a helpful Derelict 5168 | -9/Mines | A Derelict revealed a hidden shortcut to a safe place 5209 | -9/Mines | Assembled infested the area 5222 | -9/Mines | Core integrity fell below 20% 5226 | -9/Mines | Destroyed by D-53 Grenadier with Mini Grenade Launcher Last Messages --------------- lost. K-01 Serf collects debris. ALERT: Infestation in the mines, dispatching Demolisher response squad. K-01 Serf collects debris. C-30 ARC bursts open, deploying its payload. D-53 Grenadier unfolds itself. K-01 Serf collects debris. Lgt. Ion Engine destroyed. Lgt. Treads destroyed. MK-I6R(g) destroyed. Lgt. Assault Rifle destroyed. K-01 Serf collects debris. Hvy. Assault Rifle destroyed. K-01 Serf collects debris. Beam Rifle destroyed. R-06 Scavenger destroyed. U-05 Engineer lays Concrete. U-05 Engineer builds a Wall. K-01 Serf collects debris. Map ----- +----------------------------------------------------+ | ?????????????????????????????????????????????????? | | ?????????????????????????????????????????????????? | | ?????????????????????????????????????????????????? | | ?????????????????????????????????????????????????? | | ?????????????????????????????????????????????????? | | ?????????????????????????????????????????????????? | | ?????????????????????????????????????????????????? | | ?????????????????????????????????????????????????? | | #????????????????????????????????????????????????? | | #????????????????????????????????????????????????? | | #????????????????????????????????????????????????? | | #????????????????????????????????????????????????? | | #????????????????????????????????????????????????? | | #??????????????#####?????????????????????????????? | | ??????????????## ##????????????????????????????? | | ?####????????## #????????????????????????????? | | ##! ##???????? #????????????????????????????? | | # ##???????? ?????????????????????????????? | | # ! #????????# #???????????????#?????????????? | | [ #???????## #?????????????? #?????????????? | | ## #???????# ##????????###?# #?????????????? | | ?## ##???????# ##??##### ## #?????????????? | | ??##=########### #### #?????????????? | | ???#% k = #??????????????? | | ???# = =%> #???????????????? | | ???############## !=@ #???????????????? | | ????????????????# u #???????????????? | | #???????????????## ### #???????????????? | | ###?????????????# # #???????????????? | | ##????????????# #### #???????????????? | | #????????????###???## ##???????????????? | | #???????????????????# #????????????????? | | ##??####????????????## d #????????????????? | | #?## ##????????????## d% ???????????????? | | # ### #?????????????### ??????????????? | | # #???????????????####### ?????????????? | | # #?????????????????????? ????????????? | | # #??????????????????????? ???????????? | | # #????????????????????????###??????????? | | ## ##?????????????????????????????????????? | | ?##########??????????????????????????????????????? | | ?????????????????????????????????????????????????? | | | | | | | | | | | | | | | | | +----------------------------------------------------+ Best States ------------- Heat Dissipation 28 Energy Generation 14 Energy Capacity 265 Matter Stores 300 Matter Capacity 300 Sight Range 16 Robot Scan Range 14 Terrain Scan Density 10 Armor Coverage 150 Evasion (%) 50 Targeting Accuracy 6 Recoil Reduction 2 Salvage Targeting 1 Item Schematics ----------------- System Shield | -9/Materials | Scanalyzed Cesium-ion Thruster | -9/Materials | Scanalyzed Hacking Suite | -9/Materials | Scanalyzed Robot Schematics ------------------ None Fabricated ------------ Nothing Alien Tech Used ----------------- None Achievements -------------- Use The Force Challenges ------------ None Game ------ Seed CooledRestorationSheargun Manual? 0 Play Time 00:26:24 Cumulative 34.3 hours Start 2025.03.31 @ 20:32:55 End 2025.03.31 @ 21:23:57 Sessions 1 Manual Loads 0 Difficulty Rogue Special Mode None Game No. 95 Rogue 95 Adventurer 0 Explorer 0 Win Type - Total 0 Types 0/0/0/0/0/0/0/0/0 Lore% 16 Gallery% 24 Achievement% 26 Wizard Run 0 Options --------- Layout 1 ASCII 0 Keyboard 0 Movement Mouse Keybinds 0 Fullscreen 1 Font 36/Smallcaps Map View 50x40 Zoom Use 0% Tactical HUD 0 Map Filters NONE Filters NONE Steam 1 RUN: 1b4fc159-00e3-4d1e-bb6d-3f622d8f3e2c